bitfinex-derivatives/quotes_ETHF0:USTF0_20250911
["timestamp","ask_amount","ask_price","bid_price","bid_amount"]
[1757598864430,1.102,4419.4,4419.3,1.5046]
[1757598865127,0.6869,4419.3,4419.0,40.8]
[1757598865334,1.535,4419.1,4419.0,40.8]
[1757598866238,1.535,4419.1,4419.0,0.4184]
[1757598866434,0.2668,4419.0,4418.5,2.26885675]
[1757598866629,0.2668,4418.5,4418.0,2.02885675]
[1757598866934,0.6869,4418.9,4418.4,0.6397]
[1757598867126,0.6869,4419.4,4418.6,0.6397]
[1757598867431,1.5226,4419.4,4419.3,0.4184]
[1757598867738,0.6464,4419.3,4418.6,2.64205675]
[1757598867930,0.6464,4419.4,4418.6,0.6132]
[1757598868725,1.0562,4418.7,4418.6,0.8489]
[1757598868931,1.4768,4418.7,4418.6,0.8489]
[1757598869529,1.4768,4418.7,4418.6,41.6489]
[1757598870235,1.4768,4418.7,4418.6,42.2621]
[1757598870538,1.0562,4418.7,4418.6,42.2621]
[1757598871833,1.4768,4418.7,4418.6,0.4275]
[1757598872033,1.4768,4418.7,4418.6,0.8489]
[1757598872333,1.4768,4418.7,4418.6,1.4621]
[1757598872831,0.8304,4418.7,4418.2,42.82885675]
[1757598873038,0.8304,4418.4,4418.3,2.02885675]
[1757598873332,0.2629,4418.5,4418.2,0.4275]
[1757598873536,0.6464,4418.4,4418.3,1.4621]
[1757598873834,1.0562,4418.4,4418.3,1.4621]
[1757598874035,1.4768,4418.4,4418.3,0.8489]
[1757598874437,1.4768,4418.4,4418.3,1.4621]
[1757598874938,1.0562,4418.3,4418.2,1.4621]
[1757598875135,0.6464,4418.9,4418.2,1.4621]
[1757598875434,1.4768,4418.9,4418.8,0.4275]
[1757598876333,1.4768,4418.9,4418.8,0.8489]
[1757598876832,1.4768,4418.9,4418.3,40.8]
[1757598876833,0.2629,4418.5,4418.3,40.8]
[1757598877036,1.4768,4418.4,4418.3,40.8]
[1757598877237,1.4768,4418.4,4418.3,41.4132]
[1757598877530,1.0562,4418.4,4418.3,41.4132]
[1757598877732,1.0562,4418.4,4418.3,40.8]
[1757598878933,1.4768,4418.4,4418.3,0.4275]
[1757598879325,1.4768,4418.4,4418.1,40.8]
[1757598879531,0.2629,4418.5,4418.1,40.8]
[1757598879532,1.4768,4418.2,4418.1,40.8]
[1757598880439,1.4768,4418.2,4418.1,1.4621]
[1757598881245,1.4768,4418.2,4418.1,0.8489]
[1757598881434,1.4768,4418.2,4418.1,0.4275]
[1757598882039,1.4768,4417.9,4417.8,2.45635675]
[1757598882235,1.4768,4417.9,4417.8,2.6516095]
[1757598882540,1.4768,4417.9,4417.8,1.4621]
[1757598882838,1.0562,4417.9,4417.8,1.4621]
[1757598883039,1.0562,4417.9,4417.8,42.2621]
[1757598883838,1.4768,4417.9,4417.6,0.24]
[1757598884027,1.4768,4417.9,4417.8,0.4275]
[1757598884028,0.8304,4417.9,4417.8,0.4275]
[1757598884636,1.4768,4417.9,4417.8,0.4275]
[1757598885139,1.4768,4417.9,4417.8,0.8489]
[1757598885936,1.4768,4417.9,4417.8,1.4621]
[1757598887242,1.4768,4417.9,4417.8,0.8489]
[1757598887438,0.2629,4417.5,4417.4,40.8]
[1757598887644,0.9093,4417.5,4417.4,40.8]
[1757598887945,0.6464,4417.5,4417.4,41.4132]
[1757598888244,0.6464,4417.5,4417.2,1.4621]
[1757598888245,1.0562,4417.3,4417.2,1.4621]
[1757598888537,0.6464,4417.9,4417.2,1.4621]
[1757598888756,0.87277001,4417.9,4417.2,1.4621]
[1757598889240,0.2629,4418.0,4417.2,1.4621]
[1757598889430,0.6464,4417.8,4417.2,1.4621]
[1757598889739,1.0562,4417.3,4417.2,1.4621]
[1757598890340,0.6464,4417.9,4417.3,0.6132]
[1757598890640,1.4768,4417.9,4417.8,0.4275]
[1757598890835,0.8304,4417.2,4417.1,40.8]
[1757598891036,0.6464,4417.8,4417.7,0.4275]
[1757598891241,0.8304,4417.4,4417.3,0.4275]
[1757598891442,1.4768,4417.4,4417.3,0.4275]
[1757598891843,1.4768,4417.4,4417.3,41.2275]
[1757598892145,1.4768,4417.4,4417.3,41.8407]
[1757598893440,0.2629,4418.0,4417.3,41.8407]
[1757598893641,1.4768,4417.9,4417.8,1.4621]
[1757598897645,1.4768,4417.9,4417.8,0.8489]
[1757598899549,1.4768,4417.9,4417.8,1.4776]
[1757598900942,0.8304,4417.9,4417.3,43.69755675]
[1757598901250,0.4441,4417.4,4417.3,43.69755675]
[1757598901445,1.1013,4417.4,4417.3,0.426]
[1757598901744,1.5203,4417.4,4417.3,0.8401]
[1757598901950,0.4441,4417.4,4417.3,42.2688]
[1757598902455,1.1013,4417.4,4417.3,42.2688]
[1757598902949,0.2629,4418.0,4417.3,41.6401]
[1757598903137,1.5203,4417.8,4417.7,0.426]
[1757598903341,1.5203,4417.8,4417.4,0.6287]
[1757598903342,0.2607,4417.5,4417.4,0.426]
[1757598903542,1.781,4417.5,4417.4,0.426]
[1757598904144,0.2629,4418.0,4417.5,0.6287]
[1757598904346,0.8631,4417.6,4417.5,0.8401]
[1757598904742,1.5203,4417.6,4417.5,1.4688]
[1757598904944,1.5203,4418.4,4418.3,0.426]
[1757598905144,1.74665,4418.4,4418.3,0.426]
[1757598905353,0.6572,4418.9,4418.3,1.4688]
[1757598905558,0.6572,4418.8,4418.3,1.4688]
[1757598905745,0.2607,4419.5,4418.0,0.2492]
[1757598905746,0.8631,4418.9,4418.8,0.8401]
[1757598905945,1.5203,4418.9,4418.8,0.8401]
[1757598906143,1.5203,4418.9,4418.8,0.426]
[1757598906348,1.5203,4418.9,4418.8,1.4688]
[1757598906543,1.5203,4418.9,4418.8,0.8401]
[1757598906754,1.5203,4418.9,4418.8,0.426]
[1757598906956,0.8631,4418.9,4418.3,2.02885675]
[1757598907155,1.1238,4418.5,4418.4,0.426]
[1757598907355,1.781,4418.5,4418.4,1.4688]
[1757598908647,1.781,4418.5,4418.4,0.8401]
[1757598910255,1.5203,4418.3,4418.2,2.02885675]
[1757598910557,1.5203,4417.8,4417.7,3.10895675]
[1757598910752,1.5203,4417.8,4417.7,3.73765675]
[1757598910953,1.5203,4417.8,4417.7,1.7088]
[1757598911555,0.6572,4418.4,4417.9,0.8401]
[1757598911750,0.8631,4418.1,4418.0,0.8401]
[1757598912346,1.5203,4418.1,4418.0,0.8401]
[1757598912548,0.6572,4418.4,4418.3,0.8401]
[1757598912860,1.1013,4418.4,4418.3,1.4688]
[1757598913155,1.1013,4418.4,4418.3,0.426]
[1757598913364,1.5203,4418.4,4418.3,0.8401]
[1757598913957,1.781,4418.0,4417.9,2.02885675]
[1757598914255,1.5203,4417.9,4417.8,0.426]
[1757598914663,1.5203,4417.9,4417.8,1.4688]
[1757598915053,1.5203,4417.9,4417.8,0.8401]
[1757598915362,1.5203,4417.9,4417.6,2.02885675]
[1757598915363,0.6572,4417.8,4417.6,2.02885675]
[1757598915658,0.8631,4417.7,4417.5,2.02885675]
[1757598915859,1.781,4417.5,4417.4,2.02885675]
[1757598916060,1.781,4417.5,4417.2,0.24]
[1757598916253,1.781,4417.5,4417.4,0.426]
[1757598916254,1.1238,4417.5,4417.4,0.426]
[1757598916453,0.4441,4417.5,4417.4,1.4688]
[1757598916661,1.1013,4417.5,4417.4,1.4688]
[1757598916961,1.781,4417.5,4417.4,0.8401]
[1757598917964,0.6572,4417.4,4417.0,2.02885675]
[1757598918155,0.6572,4417.4,4416.6,2.83357063]
[1757598918156,0.8631,4416.7,4416.6,2.83357063]
[1757598918356,0.8631,4416.7,4415.9,0.6287]
[1757598918357,1.5203,4416.4,4416.3,2.02885675]
[1757598918772,1.5203,4416.4,4416.2,2.02885675]
[1757598918773,0.8631,4416.4,4416.2,2.02885675]
[1757598918965,1.5203,4416.3,4416.2,2.02885675]
[1757598919162,0.8631,4415.8,4415.7,2.26785675]
[1757598919360,1.13238361,4415.8,4415.7,1.4688]
[1757598919562,0.03108361,4415.8,4415.7,1.4688]
[1757598919758,0.6572,4416.7,4415.8,0.6287]
[1757598920059,1.1013,4416.9,4416.8,0.8401]
[1757598920252,1.1013,4416.9,4416.8,1.4688]
[1757598920452,1.5203,4416.9,4416.8,0.426]
[1757598920873,1.5203,4416.9,4416.8,0.8401]
[1757598921168,1.5203,4416.9,4416.8,1.4688]
[1757598921860,0.6572,4416.8,4416.2,0.8677]
[1757598922161,0.9179,4416.0,4415.7,40.8]
[1757598922362,1.1238,4415.5,4415.4,0.239]
[1757598922663,1.781,4415.5,4415.4,0.665]
[1757598922862,1.781,4415.5,4415.4,41.465]
[1757598923167,1.781,4415.5,4415.4,42.0937]
[1757598923562,1.5203,4415.5,4415.4,42.0937]
[1757598924060,0.8631,4415.3,4415.2,2.02885675]
[1757598924361,0.6572,4415.2,4415.1,0.239]
[1757598924557,1.5203,4415.2,4415.1,41.039]
[1757598924766,1.5203,4415.2,4415.1,40.8]
[1757598925367,1.1013,4415.2,4415.1,41.4287]
[1757598926169,1.1013,4415.2,4415.1,40.8]
[1757598926562,1.362,4415.5,4415.4,0.8401]
[1757598926765,1.1013,4415.5,4415.4,1.4688]
[1757598927066,1.5203,4415.5,4415.4,0.8401]
[1757598927367,1.0833,4415.2,4415.1,40.8]
[1757598927768,0.4272,4415.0,4414.5,3.84487033]
[1757598928065,1.5105,4414.6,4414.5,2.87721358]
[1757598928269,1.5105,4414.6,4414.5,44.27481358]
[1757598928658,1.0833,4414.6,4414.5,44.27481358]
[1757598928965,1.0833,4414.6,4414.0,2.02885675]
[1757598928966,1.73702,4414.6,4414.0,2.02885675]
[1757598929262,0.2531,4415.0,4413.5,3.66487063]
[1757598929263,1.3364,4414.5,4414.4,0.8222]
[1757598929467,0.6458,4414.9,4414.4,1.4198]
[1757598929668,0.2531,4415.0,4414.4,0.8222]
[1757598929863,1.0833,4415.0,4414.9,1.4198]
[1757598930465,1.5105,4415.0,4414.9,0.8222]
[1757598930668,0.2531,4414.5,4413.5,2.86015675]
[1757598930969,1.5105,4413.6,4413.5,0.8222]
[1757598931172,0.2531,4414.0,4413.5,1.4198]
[1757598931370,0.2531,4414.0,4412.8,0.35717166]
[1757598931371,0.6458,4413.1,4412.8,0.1722243]
[1757598931675,0.2531,4413.5,4412.8,0.1722243]
[1757598931676,0.6458,4413.0,4412.8,0.1722243]
[1757598931971,0.2531,4414.0,4413.0,0.2267]
[1757598932176,0.6458,4413.9,4413.1,0.5976]
[1757598933074,0.6458,4413.9,4413.2,40.8]
[1757598933374,0.2531,4413.5,4413.2,40.8]
[1757598933984,0.8989,4414.0,4413.3,0.5976]
[1757598934280,0.6458,4414.0,4413.3,0.5976]
[1757598934685,0.6458,4414.0,4413.2,40.8]
[1757598934686,0.8721,4414.4,4413.6,0.5976]
[1757598934979,0.2263,4414.4,4413.8,0.5976]
[1757598935785,0.6458,4414.3,4413.4,0.5976]
[1757598937085,0.6458,4414.3,4413.5,0.2345]
[1757598937287,0.6458,4414.3,4413.6,0.5976]
[1757598938778,0.2263,4414.4,4413.2,41.3976]
[1757598939079,0.6458,4414.3,4413.2,41.3976]
[1757598939885,0.2263,4414.4,4413.2,41.3976]
[1757598940086,0.6458,4414.3,4413.3,0.5976]
[1757598940781,0.6458,4414.3,4413.5,0.2345]
[1757598940981,0.2263,4414.4,4413.6,0.5976]
[1757598941280,0.2531,4416.5,4414.2,0.40768]
[1757598941281,32.8771,4416.5,4414.2,0.40768]
[1757598941488,0.6458,4415.9,4414.4,0.5976]
[1757598941686,0.6458,4415.9,4414.5,40.8]
[1757598941985,0.6458,4415.9,4414.6,0.5976]
[1757598942184,0.6458,4415.9,4414.6,0.8366]
[1757598942780,0.6458,4415.9,4414.7,0.5976]
[1757598943281,0.22649,4415.8,4414.6,0.239]
[1757598943482,0.6458,4415.7,4414.6,0.239]
[1757598943681,0.87229,4415.7,4414.6,0.239]
[1757598943885,0.22649,4415.6,4414.6,0.239]
[1757598944086,0.8989,4415.5,4414.6,0.239]
[1757598944490,0.2531,4415.0,4414.6,0.239]
[1757598944787,0.2531,4415.0,4414.5,40.8]
[1757598944788,0.6458,4414.9,4414.5,40.8]
[1757598944985,0.2531,4415.0,4414.5,41.3976]
[1757598945185,0.2531,4415.0,4414.5,40.8]
[1757598945483,0.6458,4414.9,4414.5,40.8]
[1757598945691,0.2531,4415.5,4414.6,0.5976]
[1757598945692,0.6458,4415.5,4414.6,0.5976]
[1757598945988,0.2531,4416.0,4415.0,0.2267]
[1757598946298,0.6458,4415.9,4415.1,0.5976]
[1757598946886,0.6458,4415.9,4415.0,0.239]
[1757598947287,0.2531,4415.5,4415.0,0.239]
[1757598947490,0.6458,4415.4,4415.0,0.239]
[1757598948089,0.2531,4415.5,4415.0,0.239]
[1757598948286,0.6458,4415.9,4415.1,0.5976]
[1757598948989,0.6458,4416.4,4415.3,0.5976]
[1757598949387,0.6458,4416.4,4415.6,0.5976]
[1757598949588,0.6458,4416.9,4415.8,0.5976]
[1757598950482,0.6458,4416.9,4416.1,0.5976]
[1757598950682,0.6458,4417.4,4416.3,0.5976]
[1757598951090,0.6458,4417.9,4416.6,0.5976]
[1757598951290,0.6458,4417.9,4416.8,0.5976]
[1757598952392,0.2531,4418.5,4416.8,0.22637999]
[1757598952590,0.6458,4418.4,4416.9,0.5976]
[1757598952986,0.6458,4418.4,4417.0,0.22635999]
[1757598953192,0.6458,4418.4,4417.1,0.5976]
[1757598953488,0.6458,4418.4,4417.3,0.5976]
[1757598953998,0.6458,4418.4,4417.3,0.82395]
[1757598954401,0.2531,4418.5,4417.3,0.82395]
[1757598954692,0.6458,4418.4,4417.3,0.82395]
[1757598954992,0.6458,4418.4,4417.4,40.8]
[1757598955389,0.2531,4418.5,4417.4,40.8]
[1757598955696,0.6458,4418.4,4417.4,40.8]
[1757598955889,0.6458,4418.4,4417.4,42.6182618]
[1757598956091,0.2531,4418.5,4417.4,42.6182618]
[1757598956289,0.6458,4418.4,4417.4,42.6182618]
[1757598956895,0.8989,4417.5,4417.4,42.6182618]
[1757598957292,0.6458,4417.5,4417.4,42.6182618]
[1757598957692,0.2531,4418.0,4417.4,43.2082618]
[1757598957898,0.6323,4417.9,4417.4,43.2082618]
[1757598958095,0.2531,4418.0,4417.4,43.2082618]
[1757598958497,0.6323,4417.9,4417.4,43.2082618]
[1757598959099,0.8732,4417.5,4417.4,42.6182618]
[1757598959998,0.2409,4417.5,4417.1,0.239]
[1757598960300,0.6323,4417.4,4417.1,0.829]
[1757598960599,0.6323,4417.4,4417.2,40.8]
[1757598960803,0.2531,4418.0,4417.3,0.59]
[1757598961100,0.2531,4418.0,4417.2,40.8]
[1757598961101,0.6323,4417.9,4417.2,40.8]
[1757598961296,0.2531,4418.0,4417.2,40.8]
[1757598961600,0.6323,4417.4,4417.2,42.57072642]
[1757598962202,0.6323,4417.4,4417.2,41.39]
[1757598962903,0.6323,4417.4,4417.2,40.8]
[1757598963101,0.2409,4417.5,4417.2,40.8]
[1757598963795,0.6323,4417.4,4417.2,40.8]
[1757598964103,0.6323,4417.9,4417.3,0.59]
[1757598964305,0.2531,4418.5,4417.3,0.59]
[1757598964306,0.239,4418.4,4417.3,0.59]
[1757598964511,0.8854,4418.5,4417.3,0.239]
[1757598964697,0.6323,4418.5,4417.6,0.59]
[1757598965003,0.8732,4418.5,4417.7,0.59]
[1757598965606,0.6323,4418.4,4417.2,43.21395544]
[1757598965795,0.2409,4418.5,4417.2,43.45295544]
[1757598965993,0.2409,4417.5,4417.2,41.039]
[1757598966197,0.2409,4417.5,4417.2,40.8]
[1757598966705,0.6323,4417.4,4417.2,40.8]
[1757598967005,0.2409,4417.5,4417.2,40.8]
[1757598967697,0.6323,4417.4,4417.2,40.8]
[1757598967997,0.6323,4417.4,4416.7,0.829]
[1757598968393,0.6323,4417.4,4416.8,40.8]
[1757598968804,0.2409,4417.5,4416.8,40.8]
[1757598969006,0.6323,4417.4,4416.8,40.8]
[1757598969205,0.6323,4417.4,4416.8,42.57324073]
[1757598969405,0.2409,4417.5,4416.8,42.57324073]
[1757598969599,0.6323,4417.4,4416.8,42.57324073]
[1757598970002,0.6323,4417.4,4416.8,43.16324073]
[1757598970399,0.2409,4418.0,4416.9,0.59]
[1757598970603,0.6323,4417.9,4417.1,0.59]
[1757598971809,0.6323,4417.9,4416.9,0.239]
[1757598973113,0.4035,4417.0,4416.9,0.6371]
[1757598973311,1.704,4417.0,4416.3,0.829]
[1757598973511,0.2409,4417.0,4416.3,0.829]
[1757598973812,1.0358,4416.9,4416.8,0.8274]
[1757598974212,1.0358,4416.9,4416.8,1.4174]
[1757598974612,0.6323,4417.4,4416.8,1.4174]
[1757598975317,0.2409,4417.5,4416.8,1.4174]
[1757598975509,1.0358,4416.9,4416.8,0.8274]
[1757598975812,1.0358,4416.9,4416.4,41.39]
[1757598975813,0.8732,4416.5,4416.4,40.8]
[1757598976615,1.2767,4417.0,4416.9,0.8274]
[1757598977014,1.704,4417.0,4416.9,0.8274]
[1757598977416,1.704,4417.0,4416.9,0.3981]
[1757598977909,1.704,4417.0,4416.3,1.77231859]
[1757598977910,0.2409,4416.5,4416.3,1.77231859]
[1757598978117,1.704,4416.5,4416.4,0.3981]
[1757598978620,0.2409,4417.0,4416.4,1.4174]
[1757598978918,1.0358,4417.1,4417.0,0.8274]
[1757598979113,0.6323,4417.1,4417.0,1.4174]
[1757598979513,1.4631,4417.1,4416.2,0.239]
[1757598979715,0.2409,4417.0,4416.2,0.829]
[1757598980023,1.0358,4416.3,4416.2,1.6564]
[1757598980221,0.2409,4417.0,4416.2,1.6564]
[1757598980614,0.6323,4416.9,4416.2,1.6564]
[1757598980918,0.6323,4416.9,4416.2,2.91485575]
[1757598981220,0.6323,4417.4,4416.8,1.4174]
[1757598982009,0.2409,4417.5,4416.8,1.4174]
[1757598982214,0.8308,4416.9,4416.4,0.238]
[1757598982416,0.2409,4417.0,4416.4,0.238]
[1757598982618,1.704,4416.5,4416.4,0.6361]
[1757598982811,1.704,4416.5,4416.4,0.3981]
[1757598983412,1.704,4416.0,4415.5,2.02885675]
[1757598983611,0.4035,4415.6,4415.5,0.8274]
[1757598983815,0.6323,4416.0,4415.9,0.8274]
[1757598984012,0.6323,4416.4,4415.9,1.4174]
[1757598984322,1.2767,4416.5,4416.4,0.8274]
[1757598985128,1.704,4416.5,4416.4,0.8274]
[1757598986627,1.704,4416.5,4416.4,0.3981]
[1757598988131,1.704,4416.5,4416.0,0.59]
[1757598988132,1.704,4416.5,4415.5,40.8]
[1757598988323,0.2409,4416.5,4415.6,0.80564999]
[1757598988724,0.6032,4416.4,4415.6,0.5792]
[1757598989735,1.404,4416.4,4416.3,0.3977]
[1757598991021,0.2493,4416.0,4415.5,42.6204932]
[1757598991227,1.404,4415.1,4415.0,2.02885675]
[1757598991421,1.6533,4415.0,4414.5,2.83357063]
[1757598991621,1.404,4414.9,4414.8,0.3977]
[1757598991827,1.404,4414.9,4414.8,2.58227088]
[1757598992124,1.404,4414.9,4414.8,0.3977]
[1757598992326,0.2493,4415.0,4414.3,2.84605675]
[1757598992327,1.404,4414.7,4414.3,0.8172]
[1757598992532,1.404,4414.4,4414.3,2.47009269]
[1757598992733,0.2493,4415.0,4414.3,2.47009269]
[1757598992734,0.2493,4415.0,4414.3,1.6026]
[1757598992934,0.6032,4414.9,4414.4,40.8]
[1757598993129,0.2493,4415.0,4414.4,40.8]
[1757598993329,1.2402,4414.5,4414.4,40.8]
[1757598994037,0.6032,4415.0,4414.9,1.3646]
[1757598994428,32.612,4416.2,4415.0,0.5792]
[1757598994429,0.238,4416.1,4415.0,0.5792]
[1757598994733,0.6032,4415.9,4415.1,0.5792]
[1757598996130,0.6032,4416.4,4415.4,0.5792]
[1757598996330,0.6032,4416.4,4415.6,0.5792]
[1757598998438,0.2493,4417.5,4415.8,0.5792]
[1757598998439,0.6032,4416.9,4415.8,0.5792]
[1757598999435,0.6032,4415.9,4415.7,40.8]
[1757598999637,0.2493,4416.0,4415.7,40.8]
[1757599000439,0.6032,4415.9,4415.7,40.8]
[1757599000633,0.2493,4416.0,4415.7,40.8]
[1757599000634,0.6032,4416.4,4415.8,0.5792]
[1757599001041,0.6032,4416.4,4415.8,0.8172]
[1757599001242,0.6032,4416.4,4415.8,0.238]
[1757599001436,0.6032,4416.4,4415.9,0.5792]
[1757599001642,0.6032,4416.9,4416.0,0.5792]
[1757599002340,0.6032,4416.9,4416.2,0.5792]
[1757599002644,0.6032,4416.9,4416.3,0.5792]
[1757599003444,0.6032,4416.9,4416.1,2.02885675]
[1757599003639,0.6032,4416.9,4416.0,2.02885675]
[1757599003943,0.2493,4417.5,4416.4,40.8]
[1757599004241,0.6032,4416.9,4416.4,40.8]
[1757599004842,0.8525,4417.0,4416.4,41.3792]
[1757599006337,0.8525,4416.5,4416.4,40.8]
[1757599006550,0.6032,4416.4,4416.1,2.02885675]
[1757599006743,0.6032,4416.4,4415.5,0.5792]
[1757599006744,0.8525,4416.0,4415.9,2.02885675]
[1757599006952,0.6032,4416.0,4415.9,40.8]
[1757599007146,0.2493,4416.5,4415.9,40.8]
[1757599007147,0.6032,4416.5,4416.0,0.5792]
[1757599007442,0.6032,4416.5,4416.2,0.5792]
[1757599007641,0.2493,4417.0,4416.1,0.238]
[1757599007841,0.2493,4417.0,4416.2,0.5792]
[1757599008043,0.2493,4417.0,4416.2,0.80562]
[1757599008347,0.6032,4416.9,4416.2,2.60805675]
[1757599008547,0.2493,4417.5,4416.3,2.25527675]
[1757599008747,0.2493,4418.0,4416.7,2.43628675]
[1757599008946,0.8525,4418.0,4417.0,0.2147]
[1757599009149,0.8525,4418.0,4417.2,0.5792]
[1757599010353,0.8525,4418.5,4417.3,0.5792]
[1757599012557,0.6032,4418.4,4417.4,40.8]
[1757599012752,0.47565,4418.5,4417.4,40.8]
[1757599012954,0.6032,4418.4,4417.4,40.8]
[1757599013752,0.2493,4418.5,4417.4,40.8]
[1757599014063,0.6032,4418.4,4417.4,40.8]
[1757599014357,0.47565,4418.5,4417.4,40.8]
[1757599014558,0.6032,4418.4,4417.4,40.8]
[1757599014852,0.8525,4417.5,4417.4,40.8]
[1757599015954,0.6032,4417.4,4417.1,0.238]
[1757599016152,0.6032,4417.4,4417.1,0.8172]
[1757599016352,0.6032,4417.4,4417.2,40.8]
[1757599016658,0.6032,4417.4,4417.3,0.5792]
[1757599016857,0.6032,4417.9,4417.3,0.5792]
[1757599017155,0.6032,4417.9,4417.2,40.8]
[1757599017156,0.6032,4417.9,4417.5,0.5792]
[1757599017350,0.6099,4418.4,4417.5,0.5741]
[1757599018155,0.6099,4418.4,4417.5,0.7966]
[1757599018459,0.6099,4418.4,4417.6,0.5741]
[1757599020955,0.7562,4417.3,4417.2,40.8]
[1757599021156,1.3661,4417.3,4417.2,40.8]
[1757599022051,0.2283,4417.5,4417.2,41.3741]
[1757599022257,0.6099,4417.5,4417.4,1.3651]
[1757599022654,1.5944,4417.5,4417.4,0.3942]
[1757599023159,0.6099,4417.4,4417.2,40.8]
[1757599023362,0.6099,4416.8,4416.3,2.26685675]
[1757599023655,0.2283,4418.0,4417.0,0.7966]
[1757599023954,0.3785,4418.0,4417.9,0.791]
[1757599024354,0.6099,4418.4,4418.0,0.5741]
[1757599024558,0.7562,4418.4,4417.6,0.8121]
[1757599024757,0.2283,4419.0,4417.6,0.8121]
[1757599025055,0.6099,4418.4,4417.6,0.8121]
[1757599025358,0.2823,4419.5,4417.6,0.8121]
[1757599025359,0.2283,4419.5,4418.4,0.5741]
[1757599025654,0.83622,4419.4,4418.4,0.5741]
[1757599026156,0.6099,4419.4,4418.4,0.5741]
[1757599026551,0.6099,4419.4,4418.5,0.5741]
[1757599026949,0.6099,4419.4,4418.3,2.26685675]
[1757599027153,0.6099,4419.4,4418.5,0.5741]
[1757599027649,0.6099,4419.4,4418.3,0.64529]
[1757599027650,0.6099,4419.4,4418.7,0.5741]
[1757599028058,0.6099,4419.4,4418.3,3.02400026]
[1757599028254,0.2283,4419.5,4418.3,3.25030026]
[1757599028454,0.6099,4419.4,4418.4,0.5741]
[1757599028656,0.6099,4419.4,4418.5,0.5741]
[1757599029652,0.6099,4419.4,4418.4,1.79432091]
[1757599029851,0.6099,4419.4,4418.3,0.42104351]
[1757599030362,0.8362,4419.4,4418.3,0.238]
[1757599030860,0.6099,4419.4,4418.4,0.5741]
[1757599031658,0.6099,4419.4,4418.4,2.35918806]
[1757599031867,0.6099,4419.4,4418.5,0.5741]
[1757599032165,0.2283,4420.0,4418.5,0.5741]
[1757599032364,0.22628,4419.9,4418.5,0.22627999]
[1757599032566,0.6099,4419.8,4418.6,0.5741]
[1757599032962,0.6099,4420.4,4419.1,0.5741]
[1757599033163,0.6099,4420.4,4419.3,0.5741]
[1757599033364,0.6099,4420.4,4419.4,40.8]
[1757599033667,0.6099,4420.4,4419.5,0.5741]
[1757599034575,0.8382,4419.5,4419.4,40.8]
[1757599035165,0.6099,4419.5,4419.4,40.8]
[1757599035557,0.8382,4419.5,4419.4,40.8]
[1757599037970,0.8382,4419.5,4418.8,0.5741]
[1757599038473,0.6099,4419.4,4418.9,40.8]
[1757599038976,0.2283,4419.5,4418.9,40.8]
[1757599039477,0.6099,4419.4,4418.9,40.8]
[1757599039668,0.6099,4420.4,4419.1,0.5741]
[1757599039972,0.6099,4420.4,4419.3,0.5741]
[1757599040467,0.6099,4420.4,4419.6,0.5741]
[1757599040658,0.6099,4420.4,4419.8,0.5741]
[1757599042862,1.3661,4420.4,4419.8,0.5741]
[1757599043063,1.3661,4420.4,4420.3,0.791]
[1757599043371,0.6099,4420.9,4420.3,1.3651]
[1757599043961,0.2283,4421.5,4420.4,40.8]
[1757599044374,0.3785,4420.5,4420.4,40.8]
[1757599044575,0.9884,4420.5,4420.4,40.8]
[1757599045072,1.2167,4420.5,4420.4,40.8]
[1757599046976,0.6099,4420.5,4420.4,1.3651]
[1757599047175,0.6099,4420.9,4420.4,1.3651]
[1757599047470,0.5695,4420.9,4420.4,0.791]
[1757599047675,0.2283,4421.5,4420.9,0.7958]
[1757599047982,0.2283,4421.5,4420.9,1.3991]
[1757599048279,0.5695,4421.4,4420.9,1.3991]
[1757599048579,0.45448,4421.5,4420.9,1.3991]
[1757599048770,0.5695,4421.4,4420.9,0.7958]
[1757599049079,0.7978,4421.5,4420.9,1.3991]
[1757599050277,0.5695,4421.5,4421.4,1.3991]
[1757599050679,0.2357,4423.0,4421.4,1.3991]
[1757599050680,0.2357,4423.0,4422.4,0.7958]
[1757599050971,0.2357,4423.0,4422.4,41.5958]
[1757599051280,1.5826,4423.0,4422.9,0.3869]
[1757599051775,1.5826,4423.0,4422.5,0.6033]
[1757599052076,0.5695,4422.9,4422.5,0.6033]
[1757599052673,0.2357,4423.0,4422.5,0.6033]
[1757599053171,0.5695,4423.4,4422.8,0.7958]
[1757599053475,0.5695,4423.4,4422.4,40.8]
[1757599053476,0.9707,4423.4,4423.3,0.7958]
[1757599053784,0.5695,4423.3,4422.5,0.6033]
[1757599053971,0.17730925,4423.8,4422.5,0.8403]
[1757599054174,0.9707,4422.6,4422.5,0.3869]
[1757599054372,0.17730925,4423.8,4422.5,1.3991]
[1757599054682,0.2357,4424.0,4422.4,40.8]
[1757599054683,0.5695,4423.4,4423.3,0.7958]
[1757599054983,0.9707,4423.4,4423.3,0.7958]
[1757599055277,1.3469,4423.4,4423.3,0.7958]
[1757599055978,1.3469,4423.4,4422.6,0.237]
[1757599056378,0.5695,4423.4,4423.3,0.7958]
[1757599056578,0.2357,4424.0,4423.3,1.3991]
[1757599056781,0.5695,4423.9,4423.3,1.3991]
[1757599057078,0.2357,4424.0,4423.3,1.3991]
[1757599057279,0.4012,4423.4,4423.3,1.3991]